Cogmind - Beta 13 @@@ ROGUE MODE // 2024.04.06 @ 18:29:00 Player: dohmmass Result: Destroyed by Y-54 Guardian with Gatling Laser Performance ------------- Evolutions (3) 1500 Regions Visited (7) 1400 Robots Destroyed (24) 120 Value Destroyed (723) 723 Prototype IDs (2) 40 Alien Tech Used (0) 0 Bonus (0) 0 TOTAL SCORE: 3783 Bonus ------- None Cogmind --------- Core Integrity 0/700 Matter 261/300 Energy 100/100 System Corruption 13% Temperature Cool (12) Movement Walking (120) Location -7/Factory Parts ------- > --- POWER (1) -------- (None) > --- PROPULSION (2) --- Aluminum Leg > --- UTILITY (6) ------ (None) > --- WEAPON (4) ------- (None) > --- INVENTORY (5) ---- Microactuators Improved Medium Armor Plating Peak State ------------ > --- POWER ------------ Light Nuclear Core > --- PROPULSION ------- Armored Huge Wheel > --- UTILITY ---------- Cooling System Medium Storage Unit Structural Scanner Targeting Computer Hardened Light Armor Plating Hardened Light Armor Plating > --- WEAPON ----------- Arc Projector Gauss Rifle Improved Light Cannon Improved Light Cannon > --- INVENTORY -------- Carbon-fiber Leg Carbon-fiber Leg Cooling System Signal Interpreter Improved Terrain Scanner Hardened Light Armor Plating Hacking Suite Improved Field Recycling Unit [Rating: 34] Favorites ----------- Power Ion Engine Engine Ion Engine Power Core Light Nuclear Core Propulsion Compact Wheel Leg Carbon-fiber Leg Wheel Compact Wheel Utility Targeting Computer Device Structural Scanner Storage Medium Storage Unit Processor Targeting Computer Hackware Hacking Suite Protection Hardened Light Armor Plating Weapon Improved Light Cannon Energy Gun Arc Projector Ballistic Gun Gauss Rifle Ballistic Cannon Improved Light Cannon Slashing Weapon Mining Claw Build | -11 -10 -9 -9 -8 -7 -7 -7 ------- Run | Yrd Mat Mat Min Mat Fac Was Fac Slots Evolved 6 | . . 2 . 2 2 . . Power . | . . . . . . . . Propulsion . | . . . . . . . . Utility 4 | . . 2 . . 2 . . Weapon 2 | . . . . 2 . . . Parts Attached 40 | 5 5 3 . 12 5 . 10 Power 3 | 1 . . . 1 . . 1 Engine 1 | 1 . . . . . . . Core 2 | . . . . 1 . . 1 Reactor . | . . . . . . . . Propulsion 8 | 2 . . . 2 1 . 3 Treads . | . . . . . . . . Leg 5 | . . . . 2 . . 3 Wheel 3 | 2 . . . . 1 . . Hover . | . . . . . . . . Flight . | . . . . . . . . Utility 14 | . 3 2 . 2 3 . 4 Device 6 | . 1 1 . 1 2 . 1 Storage 1 | . 1 . . . . . . Processor 2 | . 1 . . . . . 1 Hackware 2 | . . . . . . . 2 Protection 3 | . . 1 . 1 1 . . Artifact . | . . . . . . . . Weapon 15 | 2 2 1 . 7 1 . 2 Energy Gun 1 | . . . . . 1 . . Energy Cannon . | . . . . . . . . Ballistic Gun 3 | 2 . . . 1 . . . Ballistic Cannon 5 | . 2 1 . 2 . . . Launcher . | . . . . . . . . Special Weapon . | . . . . . . . . Impact Weapon . | . . . . . . . . Slashing Weapon 6 | . . . . 4 . . 2 Piercing Weapon . | . . . . . . . . Special Melee Weapon . | . . . . . . . . Unidentified Prototypes . | . . . . . . . . Parts Lost 24 | . . . . 8 . 7 9 Power 3 | . . . . 1 . 1 1 Propulsion 4 | . . . . 2 . . 2 Utility 9 | . . . . 1 . 4 4 Weapon 8 | . . . . 4 . 2 2 Highest Loss Streak 9 | . . . . 5 . 4 9 To Critical Strikes . | . . . . . . . . Average Slot Usage (%) 73 | . 91 100 100 83 91 47 16 Engine 5 | . 14 11 11 3 . . . Core 1 | . . . . 1 7 1 . Leg 3 | . . . . 10 7 . 1 Wheel 11 | . 28 22 22 4 3 5 . Device 7 | . 5 11 11 9 15 8 . Storage 5 | . 3 11 11 9 7 3 . Processor 7 | . 10 11 11 9 7 5 . Hackware 1 | . . . . . . . 11 Protection 5 | . . 11 11 5 15 7 . Ballistic Gun 5 | . 11 . . 2 7 3 . Ballistic Cannon 11 | . 16 22 22 4 15 7 . Slashing Weapon 4 | . . . . 23 . . 1 Naked Turns 41 | . . . . . . 30 11 Heaviest Build 44 | 9 23 29 29 33 44 44 16 Greatest Support 32 | 32 32 32 32 32 30 28 25 Greatest Overweight (x) 7 | . . . . 7 1 1 5 Average Overweight (x) . | . . . . . 1 . . Largest Inventory Capacity 10 | 5 10 10 10 10 10 10 5 Average Capacity 7 | 5 6 10 10 10 10 7 5 Most Carried 10 | 5 10 10 10 10 10 10 5 Average Carried 5 | 1 3 8 10 8 6 7 4 Final Capacity 10 | 5 10 10 10 10 10 5 5 Final Carried 10 | . 10 10 10 6 10 5 2 Class Distribution -------------------- 59% | Mutant 23% | Tank 11% | Hacker-Mutant 5% | Gunner Dominant Class ---------------- Mutant | -10/Materials Mutant | -9/Materials Mutant | -9/Mines Mutant | -8/Materials Tank | -7/Factory Mutant | -7/Waste Hacker-Mutant | -7/Factory Resources | -11 -10 -9 -9 -8 -7 -7 -7 ----------- Run | Yrd Mat Mat Min Mat Fac Was Fac Matter Collected 815 | 243 194 51 . 206 21 . 100 Remotely . | . . . . . . . . Salvage Created 703 | . 232 47 . 260 21 . 143 Parts 41 | . 18 3 . 7 3 . 10 Haulers Intercepted 1 | . 1 . . . . . . Recyclers Shooed . | . . . . . . . . Parts Field Recycled . | . . . . . . . . Retrieved Matter . | . . . . . . . . Parts Self-Destructed . | . . . . . . . . Prevented . | . . . . . . . . Kills | -11 -10 -9 -9 -8 -7 -7 -7 ------- Run | Yrd Mat Mat Min Mat Fac Was Fac Combat Hostiles Destroyed 22 | . 10 1 . 8 . . 3 Melee 6 | . . . . 3 . . 3 Guns 4 | . 3 . . 1 . . . Cannons 12 | . 7 1 . 4 . . . Classes Destroyed 6 | . 3 1 . 1 1 . . Hauler 1 | . 1 . . . . . . Operator 1 | . . . . . 1 . . Swarmer 9 | . 6 . . 3 . . . Grunt 9 | . 4 . . 3 . . 2 Sentry 1 | . . 1 . . . . . Hunter 3 | . . . . 2 . . 1 Best Kill Streak 5 | . 5 1 . 5 1 . 2 Combat Bots Only 5 | . 4 1 . 5 . . 2 Max Kills in Single Turn 2 | . 2 1 . 1 1 . 1 Gunslinging 1 | . 1 . . . . . . Exploded . | . . . . . . . . Melee 1 | . . . . 1 . . 1 Uniques/NPCs Destroyed . | . . . . . . . . Combat | -11 -10 -9 -9 -8 -7 -7 -7 -------- Run | Yrd Mat Mat Min Mat Fac Was Fac Hostile Shots Fired 290 | . 32 4 . 100 . 8 146 Missed 96 | . 11 1 . 31 . 2 51 Damage Taken 2665 | . 206 44 . 1001 . 279 1135 Core 1014 | . 57 . . 253 . 135 569 Absorbed by Shields . | . . . . . . . . Core Remaining (%) 82 | 100 77 . 100 54 . . . Volleys Fired 31 | . 19 2 . 8 2 . . Largest 4 | . 2 2 . 3 4 . . Hottest 161 | . 78 78 . 106 161 . . Shots Fired 73 | . 38 4 . 24 7 . . Gun 21 | . 10 . . 8 3 . . Cannon 52 | . 28 4 . 16 4 . . Launcher . | . . . . . . . . Special . | . . . . . . . . Kinetic 72 | . 38 4 . 24 6 . . Thermal . | . . . . . . . . Explosive . | . . . . . . . . Electromagnetic 1 | . . . . . 1 . . Robot Hit Streak 6 | . 5 2 . 6 2 . . Robot Miss Streak 4 | . 3 1 . 3 4 . . Penetration Max . | . . . . . . . . Secondary Targets 2 | . 2 . . . . . . Max Gunslinging Chain 1 | . 1 . . . . . . Shots Hit Robots 65 | . 22 2 . 31 2 . 8 Core Hits 31 | . 12 1 . 13 2 . 3 Critical Kills . | . . . . . . . . Critical Parts Destroyed . | . . . . . . . . Critical Strikes 5 | . 4 . . . . . 1 Blast 4 | . 4 . . . . . . Sever 1 | . . . . . . . 1 Melee Attacks 44 | . . . . 33 . . 11 Impact . | . . . . . . . . Slashing 44 | . . . . 33 . . 11 Piercing . | . . . . . . . . Sneak Attacks . | . . . . . . . . Combat Hostiles . | . . . . . . . . Follow-up Attacks 12 | . . . . 11 . . 1 Damage Inflicted 1485 | . 406 45 . 669 46 . 319 Guns 199 | . 89 . . 87 23 . . Cannons 573 | . 317 45 . 188 23 . . Explosions . | . . . . . . . . Melee 710 | . . . . 394 . . 316 Ramming 3 | . . . . . . . 3 Kinetic 772 | . 406 45 . 275 46 . . Thermal . | . . . . . . . . Explosive . | . . . . . . . . Electromagnetic . | . . . . . . . . Impact . | . . . . . . . . Slashing 710 | . . . . 394 . . 316 Piercing . | . . . . . . . . Highest Corruption 13 | . . . . . . 13 13 Average Corruption 11 | . . . . . . 8 13 Corruption Purged . | . . . . . . . . Corruption Blocked . | . . . . . . . . Effects 21 | . . . . . . 9 12 Message Errors 3 | . . . . . . 2 1 Matter Fused 6 | . . . . . . 1 5 Heat Flow Errors 1 | . . . . . . . 1 Energy Discharges 3 | . . . . . . 1 2 Parts Rejected 1 | . . . . . . 1 . Data Loss (minor) 2 | . . . . . . 1 1 Alerts 1 | . . . . . . . 1 Misdirections 4 | . . . . . . 3 1 Overload Shots . | . . . . . . . . Overflow Damage . | . . . . . . . . Projectiles . | . . . . . . . . Explosions . | . . . . . . . . Melee . | . . . . . . . . Knockbacks 3 | . 1 . . 2 . . . Impact . | . . . . . . . . Kinetic 3 | . 1 . . 2 . . . Secondary . | . . . . . . . . Self-Inflicted Damage . | . . . . . . . . Shots . | . . . . . . . . Rammed . | . . . . . . . . Targets Rammed 4 | . . . . . . . 4 Kicked 4 | . . . . . . . 4 Crushed . | . . . . . . . . Highest Temperature 226 | . 90 66 . 226 42 . 132 Average Temperature 60 | . 41 38 . 90 21 . 81 Received Heat Transfer 666 | . 6 18 . 117 . . 525 Siege Activations . | . . . . . . . . Robots Corrupted . | . . . . . . . . Combat Hostiles . | . . . . . . . . Parts Fried . | . . . . . . . . Impact Corruptions . | . . . . . . . . Robots Melted . | . . . . . . . . Combat Hostiles . | . . . . . . . . Parts Melted . | . . . . . . . . Heat Transferred . | . . . . . . . . Parts Sabotaged . | . . . . . . . . Parts Stolen . | . . . . . . . . Parts Stripped . | . . . . . . . . Power Chain Reactions . | . . . . . . . . Alert | -11 -10 -9 -9 -8 -7 -7 -7 ------- Run | Yrd Mat Mat Min Mat Fac Was Fac Peak Influence 197 | . 197 74 28 191 121 42 133 Initial 86 | . . 29 28 10 86 42 3 Average 62 | . 61 58 28 62 111 19 49 Maximum Alert Level . | . . . . . . . . Low Security (%) 100 | 100 100 100 100 100 100 100 100 Level 1 . | . . . . . . . . Level 2 . | . . . . . . . . Level 3 . | . . . . . . . . Level 4 . | . . . . . . . . Level 5 . | . . . . . . . . High Security . | . . . . . . . . Max Security . | . . . . . . . . Squads Dispatched 6 | . . 1 . 1 1 . 3 Investigation 1 | . . . . . . . 1 Extermination . | . . . . . . . . Reinforcement 5 | . . 1 . 1 1 . 2 Assault . | . . . . . . . . Garrison . | . . . . . . . . Intercept . | . . . . . . . . Searches Triggered . | . . . . . . . . Construction Impeded . | . . . . . . . . Haulers Reinforced . | . . . . . . . . Active Scanning Responses . | . . . . . . . . Cargo Convoy Interrupts . | . . . . . . . . Stealth | -11 -10 -9 -9 -8 -7 -7 -7 --------- Run | Yrd Mat Mat Min Mat Fac Was Fac Distress Signals . | . . . . . . . . Communications Jammed . | . . . . . . . . Distress Signals . | . . . . . . . . Times Spotted 50 | . 12 2 . 12 4 6 14 Peak Tracking Total 7 | . 4 3 . 6 1 6 7 Tactical Retreats 4 | . . . . 1 . . 3 Traps | -11 -10 -9 -9 -8 -7 -7 -7 ------- Run | Yrd Mat Mat Min Mat Fac Was Fac Traps Triggered 4 | . 1 . . . 1 . 2 Indirectly . | . . . . . . . . Trap Hack Attempts . | . . . . . . . . Triggered . | . . . . . . . . Disarmed . | . . . . . . . . Reprogrammed . | . . . . . . . . Reused . | . . . . . . . . Traps Extracted . | . . . . . . . . Installed . | . . . . . . . . Triggered . | . . . . . . . . Machines | -11 -10 -9 -9 -8 -7 -7 -7 ---------- Run | Yrd Mat Mat Min Mat Fac Was Fac Machines Disabled 1 | . 1 . . . . . . Max in Single Turn 1 | . 1 . . . . . . Garrison Access 1 | . . . . . . . 1 Machines Repaired . | . . . . . . . . Machines Dismantled . | . . . . . . . . Machines Sabotaged . | . . . . . . . . Overloaded Fab Kills . | . . . . . . . . Hacking | -11 -10 -9 -9 -8 -7 -7 -7 --------- Run | Yrd Mat Mat Min Mat Fac Was Fac Machines Accessed 3 | . 1 . . . . . 2 Terminals 2 | . 1 . . . . . 1 Fabricators . | . . . . . . . . Repair Stations . | . . . . . . . . Recycling Units . | . . . . . . . . Scanalyzers . | . . . . . . . . Garrison Access 1 | . . . . . . . 1 Total Hacks 8 | . 1 . . . . . 7 Successful 3 | . 1 . . . . . 2 Failed 5 | . . . . . . . 5 Catastrophic 2 | . . . . . . . 2 Database Lockouts . | . . . . . . . . Manual . | . . . . . . . . Terminals 4 | . 1 . . . . . 3 Fabricators . | . . . . . . . . Repair Stations . | . . . . . . . . Recycling Units . | . . . . . . . . Scanalyzers . | . . . . . . . . Garrison Access 4 | . . . . . . . 4 Terminal Hacks 2 | . 1 . . . . . 1 Prototype ID Bank 1 | . 1 . . . . . . Alert Level 1 | . . . . . . . 1 Fabricator Hacks . | . . . . . . . . Repair Station Hacks . | . . . . . . . . Recycling Unit Hacks . | . . . . . . . . Scanalyzer . | . . . . . . . . Garrison Access Hacks 1 | . . . . . . . 1 Seal Access 1 | . . . . . . . 1 Unauthorized Hacks . | . . . . . . . . Terminals . | . . . . . . . . Fabricators . | . . . . . . . . Repair Stations . | . . . . . . . . Recycling Units . | . . . . . . . . Scanalyzers . | . . . . . . . . Garrison Access . | . . . . . . . . Data Cores Recovered . | . . . . . . . . Used . | . . . . . . . . Hacking Detections 2 | . . . . . . . 2 Full Trace Events . | . . . . . . . . Feedback Events . | . . . . . . . . Feedback Blocked . | . . . . . . . . Robot Schematics Acquired . | . . . . . . . . Robots Built . | . . . . . . . . Authchips . | . . . . . . . . Time . | . . . . . . . . Total Robot Build Rating . | . . . . . . . . Part Schematics Acquired . | . . . . . . . . Parts Built . | . . . . . . . . Authchips . | . . . . . . . . Time . | . . . . . . . . Total Part Build Rating . | . . . . . . . . Parts Repaired . | . . . . . . . . Time . | . . . . . . . . Parts Recycled . | . . . . . . . . Recycled Matter . | . . . . . . . . Retrieved Matter . | . . . . . . . . Retrieved Components . | . . . . . . . . Parts Scanalyzed . | . . . . . . . . Part Schematics Acquired . | . . . . . . . . Parts Damaged . | . . . . . . . . Bothacking | -11 -10 -9 -9 -8 -7 -7 -7 ------------ Run | Yrd Mat Mat Min Mat Fac Was Fac Used RIF Installer . | . . . . . . . . Robots Hacked . | . . . . . . . . Non-combat . | . . . . . . . . Combat . | . . . . . . . . Robot Hacks Applied . | . . . . . . . . Relay Couplers Released . | . . . . . . . . Fabnet Peak Effective % . | . . . . . . . . Robots Rewired . | . . . . . . . . Allies Hacked . | . . . . . . . . Hacks Repelled . | . . . . . . . . Allies | -11 -10 -9 -9 -8 -7 -7 -7 -------- Run | Yrd Mat Mat Min Mat Fac Was Fac Total Allies . | . . . . . . . . Largest Group . | . . . . . . . . Highest-Rated Group . | . . . . . . . . Highest-Rated Ally . | . . . . . . . . Total Orders . | . . . . . . . . Ally Attacks . | . . . . . . . . Total Damage . | . . . . . . . . Kills . | . . . . . . . . Allies Corrupted . | . . . . . . . . Allies Melted . | . . . . . . . . Intel | -11 -10 -9 -9 -8 -7 -7 -7 ------- Run | Yrd Mat Mat Min Mat Fac Was Fac Robot Analysis Total . | . . . . . . . . Derelict Logs Recovered 1 | . . . 1 . . . . Drone Launches . | . . . . . . . . Drone Recoveries . | . . . . . . . . Exploration | -11 -10 -9 -9 -8 -7 -7 -7 ------------- Run | Yrd Mat Mat Min Mat Fac Was Fac Turns Passed 1981 | 38 522 59 127 329 393 187 326 Spaces Moved 1726 | 35 441 38 128 153 254 207 470 Core 527 | 15 . . . 2 . 62 448 Treads . | . . . . . . . . Legs 214 | . . . . 91 101 . 22 Wheels 985 | 20 441 38 128 60 153 145 . Hover . | . . . . . . . . Flight . | . . . . . . . . Fastest Speed 50 | 50 100 100 100 100 115 50 50 Average Speed 95 | 78 100 100 100 131 144 90 54 Slowest Speed 400 | 100 100 100 100 400 190 115 300 Overloaded Moves . | . . . . . . . . Propulsion Burnouts . | . . . . . . . . Robots Hopped . | . . . . . . . . Cave-ins Triggered . | . . . . . . . . Exploration Rate (%) 30 | 4 56 6 43 20 8 86 19 Regions Visited 7 Branch Regions 1 Pre-discovered Areas 2 | . . . 2 . . . . Known Exits Taken . | . . . . . . . . Unknown Exits Taken 5 | 1 1 1 1 1 . . . Scrap Searched 1 | . . . 1 . . . . Spaces Dug . | . . . . . . . . Terrain Destroyed 1 | . 1 . . . . . . Melee . | . . . . . . . . Projectile 1 | . 1 . . . . . . AOE . | . . . . . . . . Terrain Rammed . | . . . . . . . . Walls Destroyed . | . . . . . . . . Machines Disabled . | . . . . . . . . Actions | -11 -10 -9 -9 -8 -7 -7 -7 --------- Run | Yrd Mat Mat Min Mat Fac Was Fac Total 1929 | 46 484 55 127 212 277 206 522 Wait 22 | . . 7 . 14 . . 1 Move 1720 | 34 440 37 127 152 254 206 470 Hop . | . . . . . . . . Pick Up 51 | 6 16 4 . 4 11 . 10 Fast Attach . | . . . . . . . . Attach 32 | 5 2 2 . 9 4 . 10 Detach . | . . . . . . . . Swap 8 | . 3 1 . 3 1 . . Drop 15 | 1 4 2 . . 5 . 3 Fire 31 | . 19 2 . 8 2 . . Melee 31 | . . . . 22 . . 9 Ram . | . . . . . . . . Kick 4 | . . . . . . . 4 Crush . | . . . . . . . . Escape Stasis 15 | . . . . . . . 15 Rewire . | . . . . . . . . Trap . | . . . . . . . . Miscellaneous . | . . . . . . . . Route ------- -11/Scrapyard -10/Materials (discovered 2 exits: [*Mat] / [*Min]) -9/Materials -9/Mines -8/Materials -7/Factory -7/Waste -7/Factory History --------- Turn | Location | Event 12 | -11/Scrapyard | Discovered new exit (range 15) 39 | -11/Scrapyard | Entered Materials 149 | -10/Materials | Discovered new exit (range 6) 308 | -10/Materials | Build established: Mutant 368 | -10/Materials | Discovered new exit (range 16) 561 | -10/Materials | Entered another Materials area 561 | -9/Materials | Evolved 2 slots: Utility x2 578 | -9/Materials | Discovered new exit (range 16) 620 | -9/Materials | Entered Mines 645 | -9/Mines | Learned location of Zion (-7) 698 | -9/Mines | Learned location of Storage (-8) 732 | -9/Mines | Discovered new exit (range 14) 747 | -9/Mines | Entered Materials 747 | -8/Materials | Evolved 2 slots: Weapon x2 919 | -8/Materials | Lost 5 parts (1p2n1u1w) 1028 | -8/Materials | Lost 3 parts (3w) 1059 | -8/Materials | Discovered new exit (range 11) 1076 | -8/Materials | Entered Factory 1076 | -7/Factory | Evolved 2 slots: Utility x2 1370 | -7/Factory | Build established: Tank 1469 | -7/Factory | Sucked down chute 1469 | -7/Factory | Entered Waste 1484 | -7/Waste | EMP discharged 1498 | -7/Waste | Spotted C-40 Crusher 1501 | -7/Waste | Spotted C-40 Crusher 1509 | -7/Waste | Spotted C-40 Crusher 1509 | -7/Waste | Spotted C-40 Crusher 1510 | -7/Waste | Spotted C-40 Crusher 1512 | -7/Waste | Crushed by Compactor (1 part destroyed, 1 dropped) 1551 | -7/Waste | Crushed by Compactor (1 part destroyed, 1 dropped) 1552 | -7/Waste | Crushed by Compactor (1 part destroyed) 1554 | -7/Waste | Crushed by Compactor (1 part destroyed, 1 dropped) 1560 | -7/Waste | Crushed by Compactor (1 part destroyed) 1568 | -7/Waste | Spotted C-40 Crusher 1584 | -7/Waste | EMP discharged 1584 | -7/Waste | System corruption reached 10% 1591 | -7/Waste | Lost 4 parts (3u1w) 1626 | -7/Waste | Crushed by Compactor (1 part destroyed, 1 dropped) 1651 | -7/Waste | Discovered new exit (range 10) 1656 | -7/Waste | Entered Factory 1926 | -7/Factory | Core integrity fell below 50% 1962 | -7/Factory | Core integrity fell below 20% 1982 | -7/Factory | Destroyed by Y-54 Guardian with Gatling Laser Last Messages --------------- 01941_ Imp. Cooling System destroyed. 01943_ G-47 Trooper destroyed. 01945_ Slug penetrates Wall. 01947_ Acquired Aluminum Leg. 01948_ Aluminum Leg destroyed. 01949_ H-55 Commando destroyed. 01950_ Great Axe destroyed. 01952_ Acquired Carbon-fiber Leg. 01958_ K-01 Serf collects debris. 01960_ Acquired 50 matter. 01961_ K-01 Serf collects debris. 01963_ Kicked Y-54 Guardian. 01964_ K-01 Serf collects debris. 01965_ Kicked Y-54 Guardian. 01966_ Kicked Y-54 Guardian out of the way. 01967_ Kicked Y-54 Guardian. 01969_ K-01 Serf collects debris. 01971_ Carbon-fiber Leg destroyed. 01974_ System corrupted: Matter fused (-8). 01981_ Slug penetrates Wall. Map ----- +----------------------------------------------------+ | ?????# #????????##????????????????????? | | ?????# #??????? ????????????????????? | | ???? #! #??????" ""???????????????????? | | ?? # #??????" """??????????????????? | | # #######+##########?T """#?????????????????? | | #?"" #?????????????????? | | # "" """#?????????????????? | | # """#?????????????????? | | + """#?????????????????? | | # #?????????????????? | | ################# ############???????????????? | | ??????????????# ####T###? ????????????????? | | ? ????????????# #? ?????????????????? | | ???"????????????# # ?????????????????? | | ????????????????# # ??????????????????? | | ????????????????# [ h???????????????????? | | ????????????????# =*[ #???????????????????? | | ??????????????######/###Y #???????????????????? | | ??????????????#! ![! ! # #???????????????????? | | ######????????# %#g #???????????????????? | | #???????# * # #???????????????????? | | #???????# [ ! # #???????????????????? | | #???????# ! # #???????????????????? | | #???????# ! # #???????????????????? | | #???????# # #???????????????????? | | #######???????# # @ #???????????????????? | | ??????????????# # ????????????? | | ??????????????########## ????????? | | ???????????????????????# ?????????? | | ???????????????????????# ?????????? | | ???????????????????????# ??????????? | | ???????????????????????##" #######+### ??????????? | | ????????????????????????#"T#?????????????????????? | | ????????????????????????####?????????????????????? | | ?????????????????????????????????????????????????? | | ?????????????????????????????????????????????????? | | ?????????????????????????????????????????????????? | | ?????????????????????????????????????????????????? | | ?????????????????????????????????????????????????? | | ?????????????????????????????????????????????????? | | ?????????????????????????????????????????????????? | | ?????????????????????????????????????????????????? | | ?????????????????????????????????????????????????? | | ?????????????????????????????????????????????????? | | ?????????????????????????????????????????????????? | | ?????????????????????????????????????????????????? | | ?????????????????????????????????????????????????? | | ?????????????????????????????????????????????????? | | ?????????????????????????????????????????????????? | | ?????????????????????????????????????????????????? | +----------------------------------------------------+ Best States ------------- Heat Dissipation 61 Energy Generation 15 Energy Capacity 250 Matter Stores 300 Matter Capacity 300 Sight Range 16 Terrain Scan Range 16 Terrain Scan Density 10 Armor Coverage 300 Evasion (%) 55 Targeting Accuracy 5 Melee Accuracy 6 Offensive Hacking 10 Defensive Hacking 10 Item Schematics ----------------- None Robot Schematics ------------------ None Fabricated ------------ Nothing Alien Tech Used ----------------- None Achievements -------------- None Challenges ------------ None Game ------ Seed LongswordRemoteReplicator Manual? 0 Play Time 00:23:49 Cumulative 22.6 hours Start 2024.04.06 @ 18:02:23 End 2024.04.06 @ 18:29:00 Sessions 1 Manual Loads 0 Difficulty Rogue Special Mode None Game No. 44 Rogue 44 Adventurer 0 Explorer 0 Win Type - Total 0 Types 0/0/0/0/0/0/0/0/0 Lore% 14 Gallery% 30 Achievement% 21 Wizard Run 0 Options --------- Layout 1 ASCII 0 Keyboard 0 Movement Mouse Keybinds 0 Fullscreen 1 Font 24/Smallcaps Map View 50x35 Zoom Use 0% Tactical HUD 1 Map Filters NONE Filters NONE Steam 1 RUN: 833e5c49-622e-4017-ada1-c92d0364b603